bitfinex-derivatives/quotes_SOLF0:USTF0_20250409
["timestamp","ask_amount","ask_price","bid_price","bid_amount"]
[1744229903770,0.0605499,119.22,119.2,0.06084058]
[1744229904763,0.0605499,119.22,119.21,8.3917]
[1744229905575,0.0605499,119.22,119.2,8.45294058]
[1744229905867,0.0605499,119.22,119.2,0.06084058]
[1744229906067,10.54604293,119.21,119.2,0.06084058]
[1744229906263,47.46604293,119.21,119.15,1.41668552]
[1744229906461,10.54604293,119.16,119.15,1.41668552]
[1744229907673,10.60959975,119.17,119.15,1.41668552]
[1744229907971,8.3952,119.16,119.15,1.41668552]
[1744229908471,19.00449975,119.17,119.15,1.41668552]
[1744229908774,10.60959975,119.17,119.15,1.41668552]
[1744229909068,8.3952,119.16,119.15,1.41668552]
[1744229909463,10.60959975,119.17,119.15,1.41668552]
[1744229910065,0.06355682,119.17,119.15,1.41668552]
[1744229910265,8.45835682,119.17,119.15,1.41668552]
[1744229910776,0.06355682,119.17,119.15,1.41668552]
[1744229911870,0.06355682,119.17,119.15,11.96272845]
[1744229912174,0.06355682,119.17,119.15,1.41668552]
[1744229913874,8.45835682,119.17,119.15,1.41668552]
[1744229914074,0.06355682,119.17,119.15,1.41668552]
[1744229916871,47.46604293,119.25,119.16,10.54604293]
[1744229917178,10.54604293,119.24,119.19,10.54604293]
[1744229917477,8.3914,119.22,119.18,10.54604293]
[1744229918180,10.60767512,119.21,119.19,0.05475551]
[1744229918474,10.54604293,119.2,119.15,11.96272845]
[1744229918677,8.3932,119.19,119.15,11.96272845]
[1744229919270,8.3939,119.18,119.15,1.41668552]
[1744229919472,8.44828013,119.18,119.15,1.47234459]
[1744229920376,8.3945,119.17,119.15,1.47234459]
[1744229921177,0.05438013,119.18,119.15,1.47234459]
[1744229922775,8.395,119.17,119.15,1.47234459]
[1744229923577,8.44858013,119.18,119.15,1.47234459]
[1744229924081,8.3946,119.17,119.15,1.47234459]
[1744229924373,0.05438013,119.18,119.15,1.47234459]
[1744229924977,8.3949,119.17,119.15,1.47234459]
[1744229925777,8.3952,119.16,119.15,1.47234459]
[1744229928078,16.48341933,119.16,119.07,36.84]
[1744229928272,2.9971,119.15,119.07,53.32341933]
[1744229928779,8.3977,119.13,119.07,53.32341933]
[1744229928985,8.3977,119.13,119.09,16.48341933]
[1744229929373,0.05883236,119.11,119.09,16.54555195]
[1744229930884,0.05883236,119.11,119.1,62.0]
[1744229931085,0.05883236,119.11,119.09,16.54555195]
[1744229931483,8.3994,119.1,119.09,0.06213262]
[1744229933090,8.45793236,119.11,119.09,0.06213262]
[1744229934875,0.05883236,119.11,119.09,0.06213262]
[1744229935086,0.05883236,119.11,119.09,16.54555195]
[1744229936995,0.05883236,119.11,119.09,0.06213262]
[1744229937291,8.45793236,119.11,119.09,0.06213262]
[1744229939394,0.05883236,119.11,119.09,0.06213262]
[1744229940893,8.45773236,119.11,119.09,0.06213262]
[1744229941596,0.05883236,119.11,119.09,0.06213262]
[1744229942600,8.45763236,119.11,119.09,0.06213262]
[1744229943096,0.05883236,119.11,119.09,0.06213262]
[1744229944006,30.05883236,119.11,119.09,0.06213262]
[1744229944303,30.05883236,119.11,119.1,8.3994]
[1744229944502,6.0392,119.18,119.11,16.48341933]
[1744229944709,6.0392,119.18,119.13,16.48341933]
[1744229944905,8.3948,119.17,119.13,16.48341933]
[1744229945210,8.3948,119.17,119.14,8.396]
[1744229945705,8.45622205,119.17,119.14,8.4592669]
[1744229946306,0.06142205,119.17,119.14,0.0632669]
[1744229947011,8.3957,119.16,119.14,0.0632669]
[1744229947208,0.06142205,119.17,119.14,0.0632669]
[1744229947509,8.3952,119.16,119.14,0.0632669]
[1744229947711,0.06142205,119.17,119.14,0.0632669]
[1744229948204,36.86,119.16,119.1,8.399]
[1744229948797,53.34341933,119.16,119.1,8.399]
[1744229948997,8.398,119.13,119.1,8.399]
[1744229949501,8.4547909,119.13,119.1,70.45838961]
[1744229949909,8.3982,119.12,119.1,70.45838961]
[1744229950108,8.3982,119.12,119.1,8.45838961]
[1744229950507,8.4544909,119.13,119.11,8.3987]
[1744229950905,8.4544909,119.13,119.1,0.05938961]
[1744229951307,8.4544909,119.13,119.1,8.45838961]
[1744229951612,8.3981,119.12,119.1,8.45838961]
[1744229952411,8.3981,119.12,119.1,0.05938961]
[1744229953113,8.3987,119.11,119.1,0.05938961]
[1744229955214,8.3985,119.12,119.1,0.05938961]
[1744229957219,8.3987,119.11,119.1,0.05938961]
[1744229957417,3.1812909,119.13,119.1,0.05938961]
[1744229957818,8.3981,119.12,119.1,0.05938961]
[1744229958015,3.1812909,119.13,119.1,0.05938961]
[1744229958613,8.3981,119.12,119.1,0.05938961]
[1744229958811,19.68139285,119.13,119.1,0.05938961]
[1744229959013,8.3996,119.1,119.06,36.76]
[1744229959217,2.9938,119.12,119.06,36.76]
[1744229959526,39.7538,119.12,119.06,36.76]
[1744229959821,8.3999,119.1,119.07,8.4013]
[1744229960124,8.45510184,119.1,119.07,8.4580048]
[1744229962326,8.4004,119.09,119.07,8.4580048]
[1744229963624,8.45500184,119.1,119.07,8.4580048]
[1744229963827,0.05520184,119.1,119.07,0.0567048]
[1744229964413,0.05520184,119.1,119.08,8.4003]
[1744229964618,0.05520184,119.1,119.07,16.55680675]
[1744229965022,0.05520184,119.1,119.09,8.4002]
[1744229966733,0.05520184,119.1,119.09,24.90030195]
[1744229966932,1.84e-06,119.1,119.09,24.90030195]
[1744229969835,1.84e-06,119.1,119.09,8.4002]
[1744229979745,1.84e-06,119.1,119.09,18.95969696]
[1744229979943,1.84e-06,119.1,119.09,8.4002]
[1744229980238,1.84e-06,119.1,119.08,10.55949696]
[1744229980446,1.84e-06,119.1,119.07,0.0567048]
[1744229980945,8.39960184,119.1,119.07,0.0567048]
[1744229981248,1.84e-06,119.1,119.07,0.0567048]
[1744229981437,18.9592988,119.1,119.07,0.0567048]
[1744229982246,8.4003,119.09,119.07,0.0567048]
[1744229982447,10.5594988,119.1,119.07,0.0567048]
[1744229982648,1.84e-06,119.1,119.07,0.0567048]
[1744229982845,8.39970184,119.1,119.07,0.0567048]
[1744229983045,1.84e-06,119.1,119.07,0.0567048]
[1744229983245,8.39990184,119.1,119.07,0.0567048]
[1744229983749,1.84e-06,119.1,119.07,0.0567048]
[1744229983948,1.84e-06,119.1,119.07,10.61620176]
[1744229985140,1.84e-06,119.1,119.07,0.0567048]
[1744229985346,10.5594988,119.1,119.07,0.0567048]
[1744229985546,18.9591988,119.1,119.07,0.0567048]
[1744229985852,8.39970184,119.1,119.07,0.0567048]
[1744229986053,1.84e-06,119.1,119.07,0.0567048]
[1744229987855,8.39950184,119.1,119.07,0.0567048]
[1744229989857,1.84e-06,119.1,119.07,0.0567048]
[1744229991146,8.39950184,119.1,119.07,0.0567048]
[1744229992359,8.4002,119.09,119.07,0.0567048]
[1744229994159,1.84e-06,119.1,119.07,0.0567048]
[1744229994661,8.4004,119.09,119.07,0.0567048]
[1744229994862,1.84e-06,119.1,119.08,10.55949696]
[1744229995254,8.39980184,119.1,119.08,10.55949696]
[1744229996160,8.4003,119.09,119.07,10.61620176]
[1744229996862,8.4009,119.08,119.07,0.0567048]
[1744229999962,8.4006,119.09,119.07,0.0567048]
[1744230001163,8.4006,119.09,119.07,8.4579048]
[1744230002059,8.39970184,119.1,119.07,19.01740176]
[1744230002363,3.0926,119.14,119.09,10.55949696]
[1744230002563,8.3962,119.15,119.13,10.55949696]
[1744230002763,199.60149186,119.17,119.14,10.55949696]
[1744230002950,199.60149186,119.17,119.13,10.55949696]
[1744230003148,199.60149186,119.17,119.11,10.55949696]
[1744230003149,8.3968,119.14,119.11,10.55949696]
[1744230003561,8.44985665,119.14,119.11,0.05310913]
[1744230003954,8.3976,119.13,119.11,0.05310913]
[1744230004358,2.9664,119.13,119.11,0.05310913]
[1744230004563,8.398,119.12,119.11,0.05310913]
[1744230005967,11.3641,119.13,119.11,0.05310913]
[1744230006461,2.9664,119.13,119.11,0.05310913]
[1744230006663,0.05305665,119.14,119.11,10.61260609]
[1744230007163,0.05305665,119.14,119.12,8.3974]
[1744230007665,0.05305665,119.14,119.13,8.3973]
[1744230008065,0.05305665,119.14,119.11,0.05310913]
[1744230008262,0.05305665,119.14,119.12,8.3975]
[1744230008462,0.05305665,119.14,119.11,0.05310913]
[1744230008764,0.05305665,119.14,119.13,8.3973]
[1744230011466,5.665e-05,119.14,119.13,8.3973]
[1744230011669,5.665e-05,119.14,119.13,70.3973]
[1744230017273,5.665e-05,119.14,119.13,8.3973]
[1744230019177,405.59843666,119.26,119.13,8.4]
[1744230019178,46.59843666,119.26,119.13,8.4]
[1744230019373,8.3908,119.23,119.18,16.49053223]
[1744230019672,45.9373,119.25,119.18,16.49053223]
[1744230020170,0.05774028,119.23,119.2,0.05776369]
[1744230020470,8.44834028,119.23,119.2,0.05776369]
[1744230020671,0.05774028,119.23,119.2,8.45006369]
[1744230021061,0.05774028,119.23,119.2,0.05776369]
[1744230021473,8.3911,119.22,119.2,0.05776369]
[1744230021673,0.05774028,119.23,119.2,0.05776369]
[1744230023277,0.05774028,119.23,119.17,44.9542]
[1744230023577,0.05774028,119.23,119.18,8.3936]
[1744230023873,0.05774028,119.23,119.17,36.56]
[1744230024075,8.3918,119.21,119.18,8.3934]
[1744230024376,8.3918,119.21,119.18,8.44746146]
[1744230024564,8.3918,119.21,119.18,70.44746146]
[1744230025280,8.3914,119.22,119.19,8.3929]
[1744230025577,8.3914,119.22,119.18,62.05406146]
[1744230025578,0.05774028,119.23,119.18,16.54459369]
[1744230026073,0.05774028,119.23,119.2,16.49053223]
[1744230026287,0.05774028,119.23,119.2,53.05053223]
[1744230026482,0.05774028,119.23,119.22,8.391]
[1744230028395,0.05774028,119.23,119.22,62.0]
[1744230029583,0.05774028,119.23,119.22,70.391]
[1744230031288,0.05774028,119.23,119.22,86.88153223]
[1744230034678,0.05774028,119.23,119.22,24.88153223]
[1744230036488,4.028e-05,119.23,119.22,24.88153223]
[1744230036688,3.1268,119.28,119.26,8.388]
[1744230037090,412.03053223,119.34,119.28,8.3868]
[1744230037390,20.04208289,119.33,119.28,18.91168289]
[1744230037591,8.3852,119.31,119.28,18.91168289]
[1744230037794,10.58538662,119.32,119.29,0.06223857]
[1744230037991,10.52488289,119.32,119.29,0.06223857]
[1744230038190,0.06253325,119.32,119.29,0.06223857]
[1744230038391,0.06253325,119.32,119.29,10.58712146]
[1744230038696,8.44703325,119.32,119.29,10.58712146]
[1744230038999,0.06253325,119.32,119.29,18.97302146]
[1744230039388,8.3848,119.31,119.29,0.06223857]
[1744230039596,0.06253325,119.32,119.29,0.06223857]
[1744230039797,0.06253325,119.32,119.29,16.50509814]
[1744230040098,0.06253325,119.32,119.3,8.3854]
[1744230043698,0.06253325,119.32,119.29,24.89089814]
[1744230044402,0.06253325,119.32,119.29,16.50509814]
[1744230045901,0.06253325,119.32,119.3,8.385]
[1744230046101,0.06253325,119.32,119.29,16.50509814]
[1744230046899,0.06253325,119.32,119.3,36.44]
[1744230048002,0.06253325,119.32,119.31,8.3847]
[1744230048191,0.06253325,119.32,119.31,24.82755957]
[1744230049202,3.341,119.39,119.35,8.3812]
[1744230049600,8.3805,119.37,119.31,16.44285957]
[1744230049806,8.3805,119.37,119.34,8.3822]
[1744230050400,8.43828504,119.37,119.34,8.44649894]
[1744230050999,0.05778504,119.37,119.35,8.3818]
[1744230051395,0.05778504,119.37,119.34,0.06429894]
[1744230051604,0.05778504,119.37,119.34,8.44649894]
[1744230052607,8.43828504,119.37,119.34,8.44649894]
[1744230053708,0.05778504,119.37,119.34,0.06429894]
[1744230054209,8.3811,119.36,119.34,0.06429894]
[1744230055809,0.05778504,119.37,119.34,0.06429894]
[1744230057714,0.05778504,119.37,119.35,8.3813]
[1744230058012,0.05778504,119.37,119.35,8.3819]
[1744230058518,0.05778504,119.37,119.35,8.3813]
[1744230058813,0.05778504,119.37,119.34,0.06429894]
[1744230059214,0.05778504,119.37,119.34,8.44649894]
[1744230059410,8.3815,119.36,119.34,8.44649894]
[1744230059605,0.05778504,119.37,119.34,0.06429894]
[1744230060316,8.43858504,119.37,119.34,0.06429894]
[1744230060821,0.05778504,119.37,119.34,0.06429894]
[1744230061324,0.05778504,119.37,119.36,18.89086635]
[1744230061503,46.92976635,119.44,119.38,10.50976635]
[1744230061815,10.50976635,119.42,119.37,18.88996635]
[1744230062006,10.50976635,119.43,119.38,10.50976635]
[1744230062206,36.42,119.44,119.39,10.50976635]
[1744230062406,46.92976635,119.44,119.39,10.50976635]
[1744230062611,0.05762029,119.43,119.4,0.06316526]
[1744230062814,0.05762029,119.43,119.4,10.57293161]
[1744230063304,0.05762029,119.43,119.4,0.06316526]
[1744230064613,0.05762029,119.43,119.4,8.44116526]
[1744230065121,0.05762029,119.43,119.4,0.06316526]
[1744230066413,8.3772,119.42,119.4,0.06316526]
[1744230066914,0.05762029,119.43,119.4,0.06316526]
[1744230067918,0.05762029,119.43,119.41,8.3773]
[1744230069522,0.05762029,119.43,119.42,8.3769]
[1744230070412,0.05762029,119.43,119.41,8.3773]
[1744230070922,0.05762029,119.43,119.4,0.06316526]
[1744230071114,16.41278053,119.42,119.34,36.4]
[1744230071320,16.41278053,119.4,119.34,38.07588402]
[1744230071508,16.41278053,119.4,119.35,8.3815]
[1744230071712,3.2139,119.4,119.34,38.07588402]
[1744230072124,3.2139,119.4,119.37,8.38]
[1744230072423,3.2139,119.4,119.38,36.4]
[1744230072617,3.26936731,119.4,119.38,36.4]
[1744230072817,11.64786731,119.4,119.38,36.4]
[1744230074422,8.379,119.39,119.38,36.4]
[1744230074626,3.26936731,119.4,119.36,0.0586075]
[1744230074815,19.68214784,119.4,119.36,0.0586075]
[1744230075019,16.41278053,119.38,119.33,36.4]
[1744230075416,8.3836,119.33,119.3,639.8]
[1744230075930,8.3836,119.33,119.3,36.4]
[1744230076123,8.3836,119.33,119.3,44.7848]
[1744230076329,8.3842,119.32,119.3,36.45300197]
[1744230076522,0.05664655,119.33,119.3,36.45300197]
[1744230076832,8.3847,119.31,119.3,0.05300197]
[1744230077224,0.05664655,119.33,119.3,0.05300197]
[1744230077524,8.3843,119.32,119.3,0.05300197]
[1744230077923,8.3847,119.31,119.3,0.05300197]
[1744230078732,8.3843,119.32,119.3,0.05300197]
[1744230079330,8.44014655,119.33,119.3,0.05300197]
[1744230080622,8.44014655,119.33,119.3,8.43820197]
[1744230082325,8.3841,119.32,119.3,8.43820197]
[1744230082532,8.3841,119.32,119.3,0.05300197]
[1744230083131,0.05664655,119.33,119.3,0.05300197]
[1744230083627,0.05664655,119.33,119.32,8.384]
[1744230086241,0.05664655,119.33,119.3,0.05300197]
[1744230086540,0.05664655,119.33,119.27,98.36]
[1744230086844,52.77278053,119.32,119.27,8.3871]
[1744230087034,8.3854,119.31,119.25,16.41278053]
[1744230087238,8.3854,119.31,119.28,8.3867]
[1744230087541,8.3854,119.31,119.25,16.41278053]
[1744230087737,8.44798977,119.31,119.28,0.05928882]
[1744230088038,0.06258977,119.31,119.28,0.05928882]
[1744230088644,0.06258977,119.31,119.29,8.3857]
[1744230089641,0.06258977,119.31,119.3,8.3854]
[1744230091346,0.06258977,119.31,119.28,0.05928882]
[1744230091945,8.3861,119.29,119.28,0.05928882]
[1744230093139,8.3876,119.27,119.25,8.3885]
[1744230093541,8.3876,119.27,119.24,44.7492]
[1744230093740,8.3871,119.28,119.24,36.36]
[1744230093938,26.17308053,119.3,119.23,16.41278053]
[1744230094338,8.44503389,119.28,119.25,0.05742044]
[1744230094948,8.3879,119.27,119.25,0.05742044]
[1744230096447,8.3882,119.26,119.25,0.05742044]
[1744230099350,52.77278053,119.26,119.18,36.36]
[1744230099538,16.41278053,119.24,119.18,36.36]
[1744230099740,8.3925,119.2,119.18,8.3935]
[1744230099945,8.3925,119.2,119.16,16.41278053]
[1744230100350,8.3925,119.2,119.18,8.3937]
[1744230100547,0.05485954,119.19,119.18,8.3937]
[1744230100949,0.06391139,119.2,119.18,8.3937]
[1744230102063,0.06391139,119.2,119.19,8.3931]
[1744230108756,1.139e-05,119.2,119.19,8.3931]
[1744230112066,1.139e-05,119.2,119.19,70.3931]
[1744230112771,10.0556,119.25,119.24,8.3896]
[1744230113260,10.0556,119.25,119.21,16.41278053]
[1744230113462,10.0556,119.25,119.23,8.3898]
[1744230113964,10.11601664,119.25,119.23,8.45373649]
[1744230118065,18.50501664,119.25,119.23,8.45373649]
[1744230118363,10.11601664,119.25,119.23,0.06393649]
[1744230118554,10.11601664,119.25,119.19,16.41278053]
[1744230118754,8.39,119.24,119.19,16.41278053]
[1744230119162,18.50521664,119.25,119.19,16.41278053]
[1744230119660,18.50521664,119.25,119.22,8.3906]
[1744230120165,8.3896,119.24,119.22,8.3906]
[1744230120462,10.11601664,119.25,119.22,8.3906]
[1744230120761,18.50511664,119.25,119.22,8.3906]
[1744230121355,10.11601664,119.25,119.21,0.05392438]
[1744230121666,6.74641664,119.25,119.21,16.46670491]
[1744230122057,0.06041664,119.25,119.24,8.3896]
[1744230122658,1.664e-05,119.25,119.24,8.3896]
[1744230124769,1.664e-05,119.25,119.24,70.3896]
[1744230127877,1.664e-05,119.25,119.24,8.3896]
[1744230128468,1.664e-05,119.25,119.23,8.3899]
[1744230128667,1.664e-05,119.25,119.21,0.05392438]
[1744230129077,8.391,119.22,119.21,0.05392438]
[1744230129270,55.88179717,119.25,119.16,16.41278053]
[1744230129573,55.88179717,119.25,119.18,8.3933]
[1744230129574,8.3922,119.21,119.18,8.3933]
[1744230130068,8.3922,119.21,119.19,8.393]
[1744230130371,8.45193469,119.21,119.19,8.44772335]
[1744230132670,8.3924,119.2,119.19,0.05472335]
[1744230132869,3.2217,119.2,119.12,52.73278053]
[1744230133061,52.73278053,119.19,119.1,16.41278053]
[1744230133260,8.3962,119.15,119.1,16.41278053]
[1744230133466,36.32,119.16,119.09,70.77878176]
[1744230133667,39.6124,119.16,119.09,70.77878176]
[1744230134174,0.05904138,119.14,119.12,8.3977]
[1744230135875,0.05904138,119.14,119.13,8.3973]
[1744230137182,0.05904138,119.14,119.11,0.05966528]
[1744230137374,36.34,119.13,119.11,0.05966528]
[1744230137575,44.7377,119.13,119.11,8.3986]
[1744230137871,44.7377,119.13,119.06,52.75278053]
[1744230138272,44.7377,119.13,119.1,8.3991]
[1744230138676,44.79461141,119.13,119.1,8.45740839]
[1744230138977,36.39691141,119.13,119.11,8.3986]
[1744230139376,36.39691141,119.13,119.1,0.05830839]
[1744230139579,44.79431141,119.13,119.1,8.45710839]
[1744230140583,8.3981,119.12,119.1,0.05830839]
[1744230141270,52.80969194,119.13,119.1,0.05830839]
[1744230141474,36.39691141,119.13,119.1,0.05830839]
[1744230141671,8.3984,119.12,119.1,0.05830839]
[1744230141876,36.39691141,119.13,119.1,0.05830839]
[1744230142187,8.3984,119.12,119.1,0.05830839]
[1744230142371,36.39691141,119.13,119.1,0.05830839]
[1744230142686,44.79451141,119.13,119.1,8.45730839]
[1744230143186,36.39691141,119.13,119.1,0.05830839]
[1744230143384,36.39691141,119.13,119.11,8.3983]
[1744230145071,36.39691141,119.13,119.1,0.05830839]
[1744230145791,36.39691141,119.13,119.11,8.3983]
[1744230146487,36.39691141,119.13,119.1,0.05830839]
[1744230147886,8.3984,119.12,119.1,8.45740839]
[1744230150595,44.73461141,119.13,119.1,8.45740839]
[1744230150990,36.33691141,119.13,119.1,8.45740839]
[1744230151176,8.398,119.12,119.1,8.45740839]
[1744230152491,16.41278053,119.12,119.04,1.45115351]
[1744230152994,16.41278053,119.1,119.06,8.4018]
[1744230153290,42.5496,119.09,119.04,1.45115351]
[1744230153496,8.4014,119.08,119.05,8.4026]
[1744230153693,0.06051068,119.08,119.05,8.45882307]
[1744230154092,8.402,119.07,119.05,8.45882307]
[1744230155092,8.402,119.07,119.05,0.05622307]
[1744230155885,8.402,119.07,119.05,8.45892307]
[1744230157594,0.06051068,119.08,119.05,0.05622307]
[1744230157798,3.17871068,119.08,119.05,0.05622307]
[1744230158589,375.8032,119.07,118.97,1.46190846]
[1744230158798,16.41278053,119.02,118.93,3.2179]
[1744230158986,8.4077,118.99,118.93,3.2179]
[1744230159183,8.4077,118.99,118.95,8.4096]
[1744230159492,36.3,119.01,118.95,8.4096]
[1744230159690,16.41278053,119.0,118.93,3.2179]
[1744230159889,0.05896585,118.99,118.93,3.2179]
[1744230160188,36.3,118.98,118.93,3.2179]
[1744230160396,52.71278053,118.98,118.92,1.52185848]
[1744230160594,52.71278053,118.98,118.93,62.0]
[1744230160892,0.05973127,118.96,118.92,1.52185848]
[1744230161592,8.46913127,118.96,118.92,1.52185848]
[1744230162293,0.05973127,118.96,118.92,1.52185848]
[1744230163292,36.32,118.95,118.92,1.52185848]
[1744230163590,44.7306,118.95,118.92,1.52185848]
[1744230163788,46.8935,118.95,118.92,1.52185848]
[1744230163993,16.41278053,118.94,118.92,1.52185848]
[1744230164294,24.82358053,118.94,118.92,1.52185848]
[1744230164492,16.41278053,118.94,118.92,1.52185848]
[1744230166406,16.41278053,118.92,118.84,36.32]
[1744230166800,0.05824578,118.89,118.84,36.32]
[1744230167197,16.41278053,118.88,118.84,36.32]
[1744230167792,16.41278053,118.88,118.81,39.94171099]
[1744230168000,16.41278053,118.88,118.81,1.53351099]
[1744230168194,0.06181865,118.86,118.81,1.53351099]
[1744230169302,16.47459918,118.86,118.81,1.53351099]
[1744230169897,0.06181865,118.86,118.81,1.53351099]
[1744230170202,0.06181865,118.86,118.82,36.26]
[1744230174805,0.06181865,118.86,118.83,16.41278053]
[1744230176005,0.06181865,118.86,118.84,62.0]
[1744230176200,0.06181865,118.86,118.85,36.28]
[1744230181307,2.2025,118.94,118.85,52.69278053]
[1744230181508,2.2025,118.94,118.85,54.89968053]
[1744230181803,10.6136,118.94,118.87,16.41278053]
[1744230182002,2.2025,118.94,118.88,36.28]
[1744230182406,0.0542422,118.92,118.9,0.05462436]
[1744230185308,8.4141,118.9,118.84,38.5374]
[1744230185505,16.41278053,118.91,118.84,36.28]
[1744230186009,8.4149,118.89,118.84,36.28]
[1744230186211,8.4149,118.89,118.84,52.69278053]
[1744230186506,0.0570138,118.88,118.84,36.28]
[1744230186899,8.4722138,118.88,118.84,36.28]
[1744230187099,0.0570138,118.88,118.84,52.69278053]
[1744230188214,0.0570138,118.88,118.84,114.69278053]
[1744230192409,0.0570138,118.88,118.84,16.41278053]
[1744230193013,0.0570138,118.88,118.83,36.28]
[1744230193809,0.0570138,118.88,118.84,16.41278053]
[1744230195421,0.0570138,118.88,118.86,16.41278053]
[1744230195713,0.0570138,118.88,118.87,36.28]
[1744230196218,4.3577,118.95,118.87,36.28]
[1744230196513,4.3577,118.95,118.89,16.41278053]
[1744230196711,8.4112,118.94,118.89,16.41278053]
[1744230197308,0.06268624,118.93,118.89,16.41278053]
[1744230197517,0.06268624,118.93,118.9,0.05895604]
[1744230198016,8.47458624,118.93,118.9,0.05895604]
[1744230198517,8.4122,118.92,118.9,0.05895604]
[1744230198910,0.06268624,118.93,118.9,0.05895604]
[1744230200417,8.47448624,118.93,118.9,0.05895604]
[1744230201223,8.4123,118.92,118.9,0.05895604]
[1744230201418,0.06268624,118.93,118.9,0.05895604]
[1744230202522,8.4123,118.92,118.9,0.05895604]
[1744230202823,0.06268624,118.93,118.9,0.05895604]
[1744230203227,8.4122,118.92,118.9,0.05895604]
[1744230204520,0.06268624,118.93,118.86,16.41278053]
[1744230204714,16.41278053,118.9,118.83,1.46378397]
[1744230205125,8.4163,118.87,118.82,40.5242]
[1744230205719,0.06076859,118.86,118.82,40.5242]
[1744230207629,0.06076859,118.86,118.83,62.0]
[1744230209628,0.06076859,118.86,118.85,16.41278053]
[1744230209928,0.06076859,118.86,118.85,52.63278053]
[1744230212942,0.00469863,118.86,118.85,52.63278053]
[1744230217247,0.00469863,118.86,118.85,36.22]
[1744230223048,0.00469863,118.86,118.84,0.05908336]
[1744230223557,8.4171,118.85,118.84,0.05908336]
[1744230224256,8.4185,118.84,118.81,1.53351099]
[1744230224754,16.41747916,118.86,118.81,1.53351099]
[1744230225454,8.4183,118.84,118.81,1.53351099]
[1744230228357,8.4187,118.83,118.81,1.53351099]
[1744230228559,52.57278053,118.86,118.81,1.53351099]
[1744230228746,0.0646493,118.83,118.81,1.53351099]
[1744230232859,0.0646493,118.83,118.82,52.57278053]
[1744230235358,0.0646493,118.83,118.82,54.72528053]
[1744230235556,0.0646493,118.83,118.82,18.56528053]
[1744230235761,0.0646493,118.83,118.82,54.72528053]
[1744230237455,0.0646493,118.83,118.82,38.3125]
[1744230238057,0.0646493,118.83,118.82,36.16]
[1744230240465,0.0646493,118.83,118.81,1.53351099]
[1744230243171,16.41278053,118.82,118.75,36.16]
[1744230243379,2.1526,118.81,118.75,36.16]
[1744230243671,0.06236067,118.8,118.75,36.16]
[1744230245972,16.4751412,118.8,118.73,62.0]
[1744230246165,16.41278053,118.78,118.7,16.41278053]
[1744230246474,36.16,118.77,118.7,16.41278053]
[1744230246667,0.05721809,118.75,118.7,16.41278053]
[1744230248470,0.05721809,118.75,118.72,16.41278053]
[1744230248876,0.05721809,118.75,118.73,2.0897]
[1744230249075,0.05721809,118.75,118.73,18.50248053]
[1744230249372,0.05721809,118.75,118.74,62.0]
[1744230249578,0.05721809,118.75,118.74,98.16]
[1744230252978,0.05721809,118.75,118.74,62.0]
[1744230254979,0.05721809,118.75,118.73,16.41278053]
[1744230255781,0.05721809,118.75,118.71,52.57278053]
[1744230258079,0.05721809,118.75,118.72,62.0]
[1744230259172,0.05721809,118.75,118.71,52.57278053]
[1744230259686,0.05721809,118.75,118.71,36.16]
[1744230262086,0.05721809,118.75,118.71,98.16]
[1744230265287,0.05721809,118.75,118.72,10.62353664]
[1744230266889,0.05721809,118.75,118.73,10.62353664]
[1744230267088,0.05721809,118.75,118.71,98.16]
[1744230267294,0.05721809,118.75,118.72,10.62353664]
[1744230268485,10.68075473,118.75,118.71,98.16]
[1744230268685,10.62353664,118.74,118.69,309.13747377]
[1744230268892,10.62353664,118.71,118.69,298.51393713]
[1744230269091,10.62353664,118.73,118.69,298.51393713]
[1744230269290,19.05133664,118.7,118.69,298.51393713]
[1744230269489,19.05133664,118.7,118.69,21.00083713]
[1744230269688,19.05133664,118.7,118.69,12.18473713]
[1744230271389,8.4278,118.7,118.69,12.18473713]
[1744230274897,61.21180464,118.71,118.69,12.18473713]
[1744230275088,16.68440464,118.71,118.69,12.18473713]
[1744230275394,8.4278,118.7,118.69,12.18473713]
[1744230280801,25.11190464,118.71,118.69,12.18473713]
[1744230281001,16.68440464,118.71,118.69,12.18473713]
[1744230281711,8.4278,118.7,118.69,12.18473713]
[1744230293301,19.06459184,118.7,118.69,12.18473713]
[1744230302413,8.4294,118.68,118.65,2.1492]
[1744230302616,10.63679184,118.67,118.65,2.1492]
[1744230302818,10.69825832,118.68,118.65,2.1492]
[1744230303011,0.06146648,118.68,118.65,2.1492]
[1744230303207,10.69825832,118.68,118.65,2.1492]
[1744230303711,0.06146648,118.68,118.65,2.1492]
[1744230305614,8.49076648,118.68,118.65,2.1492]
[1744230311221,0.06146648,118.68,118.65,2.1492]